bitfinex/quotes_SOLUSD_20241208
["timestamp","ask_amount","ask_price","bid_price","bid_amount"]
[1733686009715,0.57432388,234.75,234.71,8.38515083]
[1733686009895,20.57432388,234.77,234.71,8.38515083]
[1733686010083,0.57432388,234.77,234.72,8.38515083]
[1733686011113,0.57432388,234.78,234.74,8.38515083]
[1733686011429,2.07872388,234.79,234.75,8.38515083]
[1733686013822,2.07872388,234.79,234.74,8.38515083]
[1733686014205,10.46387471,234.79,234.73,8.38515083]
[1733686015224,8.38515083,234.76,234.65,20.0]
[1733686015531,8.38515083,234.73,234.67,8.38515083]
[1733686016219,8.38515083,234.74,234.68,8.38515083]
[1733686016415,0.57432388,234.73,234.68,8.38515083]
[1733686017398,0.57432388,234.73,234.69,8.38515083]
[1733686017603,0.57432388,234.74,234.69,8.38515083]
[1733686017950,8.38515083,234.77,234.7,8.38515083]
[1733686018100,0.57432388,234.76,234.7,8.38515083]
[1733686019035,0.57432388,234.76,234.71,8.38515083]
[1733686019803,28.95947471,234.77,234.71,8.38515083]
[1733686021731,28.95947471,234.77,234.63,24.41597617]
[1733686021901,28.95947471,234.77,234.71,8.38515083]
[1733686022103,8.38515083,234.76,234.7,8.38515083]
[1733686024138,0.57432388,234.75,234.63,23.776884]
[1733686024445,0.57432388,234.75,234.68,8.38515083]
[1733686024446,8.95947471,234.75,234.68,8.38515083]
[1733686028230,0.57432388,234.76,234.71,8.38515083]
[1733686028434,0.57432388,234.76,234.72,8.38515083]
[1733686028649,20.0,234.77,234.72,8.38515083]
[1733686029348,20.0,234.77,234.73,8.38515083]
[1733686030744,20.0,234.77,234.72,8.38515083]
[1733686030949,20.57432388,234.77,234.72,8.38515083]
[1733686031458,20.0,234.77,234.72,8.38515083]
[1733686031827,8.38515083,234.75,234.64,10.6546]
[1733686032029,8.38515083,234.7,234.62,8.38515083]
[1733686032227,20.0,234.77,234.62,8.38515083]
[1733686032228,8.95947471,234.69,234.62,8.38515083]
[1733686032447,8.95947471,234.69,234.56,24.0530347]
[1733686032625,8.95947471,234.69,234.62,8.38515083]
[1733686033848,8.38515083,234.68,234.61,8.38515083]
[1733686034055,8.38515083,234.68,234.62,8.38515083]
[1733686034568,8.95947471,234.67,234.6,8.38515083]
[1733686034770,8.38515083,234.65,234.58,8.38515083]
[1733686034943,8.38515083,234.63,234.56,8.38515083]
[1733686035152,8.38515083,234.63,234.55,8.38515083]
[1733686035459,0.57432388,234.62,234.56,8.38515083]
[1733686035973,0.57432388,234.62,234.5,7.24256059]
[1733686035974,8.38515083,234.57,234.5,5.0]
[1733686036176,8.38515083,234.57,234.5,13.38515083]
[1733686036539,0.57432388,234.6,234.51,8.38515083]
[1733686036740,8.38515083,234.59,234.52,8.38515083]
[1733686036961,0.57432388,234.58,234.52,8.38515083]
[1733686038740,0.57432388,234.6,234.54,8.38515083]
[1733686038937,7.7524,234.61,234.57,8.38515083]
[1733686039162,1.6354,234.61,234.59,8.38515083]
[1733686039361,0.57432388,234.64,234.59,8.38515083]
[1733686039964,0.57432388,234.65,234.59,8.38515083]
[1733686041063,8.38515083,234.64,234.52,23.776884]
[1733686041286,0.57432388,234.63,234.58,8.38515083]
[1733686041443,0.57432388,234.63,234.52,23.776884]
[1733686041444,0.57432388,234.63,234.57,8.38515083]
[1733686041640,8.95947471,234.63,234.56,8.38515083]
[1733686042256,8.95947471,234.63,234.57,8.38515083]
[1733686043167,13.66453479,234.63,234.57,13.09021091]
[1733686045863,0.57432388,234.63,234.57,13.09021091]
[1733686047997,0.57432388,234.63,234.58,13.09021091]
[1733686049596,0.57432388,234.63,234.59,13.09021091]
[1733686050371,0.57432388,234.64,234.59,13.09021091]
[1733686051268,0.57432388,234.65,234.6,13.09021091]
[1733686051466,6.69132388,234.66,234.63,13.09021091]
[1733686051672,1.6354,234.67,234.65,13.09021091]
[1733686051971,0.57432388,234.71,234.66,13.09021091]
[1733686052165,13.66453479,234.71,234.65,13.09021091]
[1733686054898,0.57432388,234.71,234.65,13.09021091]
[1733686058570,0.57432388,234.71,234.66,13.09021091]
[1733686059405,13.66453479,234.76,234.7,13.09021091]
[1733686059789,13.09021091,234.75,234.69,13.09021091]
[1733686060114,0.57432388,234.74,234.69,13.09021091]
[1733686062788,0.57432388,234.74,234.68,13.09021091]
[1733686064295,13.66453479,234.74,234.68,13.09021091]
[1733686064502,13.09021091,234.72,234.65,13.09021091]
[1733686064693,13.66453479,234.71,234.64,13.09021091]
[1733686064893,13.66453479,234.71,234.65,13.09021091]
[1733686065216,13.66453479,234.71,234.65,8.37163596]
[1733686065217,0.57432388,234.71,234.65,8.37163596]
[1733686065605,0.57432388,234.71,234.57,10.6577]
[1733686065922,8.94595984,234.71,234.65,8.37163596]
[1733686066490,8.94595984,234.71,234.57,10.6577]
[1733686066491,8.37163596,234.7,234.57,10.6577]
[1733686066718,0.57432388,234.69,234.64,8.37163596]
[1733686067299,8.37163596,234.7,234.64,8.37163596]
[1733686068002,0.57432388,234.69,234.64,8.37163596]
[1733686070531,8.37163596,234.68,234.57,10.6577]
[1733686070817,0.57432388,234.67,234.56,20.0]
[1733686071021,8.94595984,234.67,234.6,8.37163596]
[1733686071397,8.37163596,234.66,234.59,8.37163596]
[1733686071615,0.57432388,234.65,234.59,8.37163596]
[1733686071824,8.94595984,234.65,234.56,20.0]
[1733686072051,8.37163596,234.63,234.49,10.6613]
[1733686072206,0.57432388,234.62,234.57,8.37163596]
[1733686072606,8.94595984,234.62,234.49,19.60726]
[1733686072806,8.94595984,234.62,234.49,10.6613]
[1733686073030,0.57432388,234.62,234.56,8.37163596]
[1733686073241,8.37163596,234.63,234.57,8.37163596]
[1733686073416,0.57432388,234.62,234.57,8.37163596]
[1733686073613,0.57432388,234.62,234.56,8.37163596]
[1733686074735,0.57432388,234.62,234.49,12.34513979]
[1733686074926,0.57432388,234.62,234.56,8.37163596]
[1733686075238,8.94595984,234.62,234.55,8.37163596]
[1733686076353,8.37163596,234.61,234.54,8.37163596]
[1733686076521,0.57432388,234.6,234.54,8.37163596]
[1733686077045,0.57432388,234.6,234.49,10.6613]
[1733686077346,0.57432388,234.6,234.54,8.37163596]
[1733686077838,9.95103596,234.59,234.52,8.37163596]
[1733686078046,8.94595984,234.58,234.51,8.37163596]
[1733686078227,8.37163596,234.57,234.5,13.37163596]
[1733686078539,0.57432388,234.56,234.51,8.37163596]
[1733686079225,0.57432388,234.56,234.5,5.0]
[1733686079424,0.57432388,234.57,234.51,8.37163596]
[1733686079970,8.94595984,234.57,234.5,13.37163596]
[1733686080515,2.15372388,234.59,234.52,8.37163596]
[1733686080721,2.15372388,234.59,234.54,8.37163596]
[1733686080921,0.57432388,234.64,234.58,8.37163596]
[1733686081136,0.57432388,234.65,234.62,8.37163596]
[1733686081447,8.57092388,234.66,234.62,8.37163596]
[1733686081846,8.57092388,234.66,234.63,8.37163596]
[1733686082233,7.9966,234.66,234.63,8.37163596]
[1733686082758,0.57432388,234.65,234.62,8.37163596]
[1733686084261,7.9966,234.66,234.62,8.37163596]
[1733686084567,0.57432388,234.65,234.62,8.37163596]
[1733686084731,0.57432388,234.65,234.61,8.37163596]
[1733686090562,0.57432388,234.65,234.53,23.776884]
[1733686090723,0.57432388,234.65,234.6,8.37163596]
[1733686091352,0.57432388,234.65,234.53,23.776884]
[1733686091560,8.94595984,234.65,234.59,8.37163596]
[1733686091863,8.94595984,234.65,234.53,23.776884]
[1733686091864,8.37163596,234.64,234.58,8.37163596]
[1733686092165,0.57432388,234.63,234.58,8.37163596]
[1733686093247,0.57432388,234.63,234.52,1.6657]
[1733686093628,0.57432388,234.63,234.58,8.37163596]
[1733686094336,0.57432388,234.63,234.52,1.6657]
[1733686094337,8.94595984,234.63,234.52,23.776884]
[1733686094557,8.94595984,234.63,234.57,8.37163596]
[1733686094926,0.57432388,234.63,234.58,8.37163596]
[1733686095534,7.9966,234.66,234.62,8.37163596]
[1733686095728,7.7577,234.73,234.65,8.37163596]
[1733686095922,7.7577,234.73,234.6,33.48654384]
[1733686095923,0.57432388,234.72,234.68,8.37163596]
[1733686096932,7.7577,234.73,234.69,8.37163596]
[1733686097125,7.7577,234.73,234.7,8.37163596]
[1733686097332,0.57432388,234.75,234.71,8.37163596]
[1733686097630,0.57432388,234.75,234.7,8.37163596]
[1733686098292,0.57432388,234.75,234.71,8.37163596]
[1733686098462,0.57432388,234.76,234.71,8.37163596]
[1733686101051,8.37163596,234.75,234.69,8.37163596]
[1733686101367,0.57432388,234.74,234.69,8.37163596]
[1733686106958,8.94595984,234.74,234.68,8.37163596]
[1733686108575,8.37163596,234.72,234.6,33.48654384]
[1733686108773,8.94595984,234.71,234.65,8.37163596]
[1733686109891,8.37163596,234.67,234.61,8.37163596]
[1733686110088,8.94595984,234.66,234.6,8.37163596]
[1733686110388,0.57432388,234.66,234.61,8.37163596]
[1733686110555,10.57055984,234.69,234.63,8.37163596]
[1733686110750,4.10211584,234.76,234.68,8.37163596]
[1733686110751,0.57432388,234.75,234.68,8.37163596]
[1733686110950,0.57432388,234.75,234.71,8.37163596]
[1733686111881,0.57432388,234.76,234.71,8.37163596]
[1733686112383,6.4404,234.78,234.73,8.37163596]
[1733686112876,0.57432388,234.77,234.72,8.37163596]
[1733686117784,14.81203596,234.78,234.72,8.37163596]
[1733686118362,6.4404,234.78,234.72,8.37163596]
[1733686118561,7.01472388,234.78,234.72,8.37163596]
[1733686120194,15.38635984,234.78,234.72,8.37163596]
[1733686121389,7.01472388,234.78,234.72,8.37163596]
[1733686121580,0.57432388,234.77,234.72,8.37163596]
[1733686128185,14.81203596,234.78,234.72,8.37163596]
[1733686128374,0.57432388,234.77,234.72,8.37163596]
[1733686129286,14.81203596,234.78,234.72,8.37163596]
[1733686130001,0.57432388,234.77,234.72,8.37163596]
[1733686130369,14.81203596,234.78,234.72,8.37163596]
[1733686130675,0.57432388,234.77,234.72,8.37163596]
[1733686130885,14.81203596,234.78,234.72,8.37163596]
[1733686131684,0.57432388,234.77,234.72,8.37163596]
[1733686136410,6.4404,234.78,234.72,8.37163596]
[1733686136584,7.01472388,234.78,234.72,8.37163596]
[1733686137617,8.94595984,234.81,234.75,8.37163596]
[1733686138279,8.94595984,234.81,234.74,8.37163596]
[1733686140415,7.7519,234.83,234.77,8.37163596]
[1733686140614,8.94595984,234.84,234.78,8.37163596]
[1733686140927,8.94595984,234.87,234.81,8.37163596]
[1733686141994,8.37163596,234.86,234.8,8.37163596]
[1733686142599,8.37163596,234.86,234.79,8.37163596]
[1733686142918,0.57432388,234.85,234.79,8.37163596]
[1733686143218,8.37163596,234.82,234.76,8.37163596]
[1733686143400,8.37163596,234.82,234.75,8.37163596]
[1733686146004,8.37163596,234.81,234.71,20.0]
[1733686146214,8.37163596,234.78,234.68,12.36636951]
[1733686146516,8.37163596,234.79,234.73,8.37163596]
[1733686149035,0.57432388,234.81,234.74,8.37163596]
[1733686149200,8.37163596,234.8,234.74,8.37163596]
[1733686150712,8.37163596,234.76,234.66,14.812036]
[1733686151030,8.37163596,234.76,234.69,8.37163596]
[1733686152025,8.37163596,234.77,234.7,8.37163596]
[1733686153017,8.37163596,234.77,234.71,8.37163596]
[1733686154300,8.37163596,234.77,234.67,23.776884]
[1733686154740,8.37163596,234.77,234.71,8.37163596]
[1733686154924,8.37163596,234.77,234.7,8.37163596]
[1733686155508,1.54,234.8,234.74,8.37163596]
[1733686155708,1.54,234.8,234.75,8.37163596]
[1733686155903,8.73142388,234.87,234.79,8.37163596]
[1733686156132,8.37163596,234.85,234.79,8.37163596]
[1733686156436,8.37163596,234.86,234.8,8.37163596]
[1733686156832,8.37163596,234.85,234.79,8.37163596]
[1733686157208,8.73142388,234.87,234.8,8.37163596]
[1733686157525,8.37163596,234.86,234.79,8.37163596]
[1733686157938,8.37163596,234.85,234.79,8.37163596]
[1733686160341,8.73142388,234.87,234.79,8.37163596]
[1733686160548,8.37163596,234.85,234.79,8.37163596]
[1733686163562,8.37163596,234.85,234.78,8.37163596]
[1733686168863,8.37163596,234.85,234.79,8.37163596]
[1733686170432,8.37163596,234.86,234.8,8.37163596]
[1733686170966,10.0297,234.91,234.83,8.37163596]
[1733686171171,8.94595984,234.9,234.84,8.37163596]
[1733686171468,7.9012,234.91,234.79,23.776884]
[1733686171757,8.37163596,234.9,234.84,8.37163596]
[1733686172174,8.37163596,234.89,234.83,8.37163596]
[1733686172855,8.37163596,234.86,234.78,10.0297]
[1733686173067,8.37163596,234.86,234.79,8.37163596]
[1733686173265,8.37163596,234.85,234.79,8.37163596]
[1733686179817,8.37163596,234.86,234.79,8.37163596]
[1733686185926,8.37163596,234.87,234.81,8.37163596]
[1733686186806,8.37163596,234.88,234.82,8.37163596]
[1733686187053,20.0,234.88,234.84,8.37163596]
[1733686187515,7.9012,234.91,234.85,8.37163596]
[1733686189627,16.27283596,234.91,234.85,8.37163596]
[1733686190541,7.9012,234.91,234.86,8.37163596]
[1733686190745,7.9012,234.91,234.87,8.37163596]
[1733686190917,8.37163596,234.93,234.87,8.37163596]
[1733686190918,2.1281,234.95,234.87,8.37163596]
[1733686191247,8.94595984,234.95,234.89,8.37163596]
[1733686191449,7.05832388,234.96,234.9,8.37163596]
[1733686192338,6.484,234.96,234.9,8.37163596]
[1733686194550,8.37163596,234.92,234.81,12.2267]
[1733686194844,8.37163596,234.91,234.85,8.37163596]
[1733686197118,8.37163596,234.92,234.85,8.37163596]
[1733686198719,8.94595984,234.91,234.85,8.37163596]
[1733686199022,8.94595984,234.91,234.81,1.5799]
[1733686199023,8.37163596,234.88,234.82,8.37163596]
[1733686201176,8.37163596,234.89,234.82,8.37163596]
[1733686202534,8.94595984,234.88,234.82,8.37163596]
[1733686202855,8.37163596,234.88,234.82,8.37163596]
[1733686204173,8.37163596,234.89,234.82,8.37163596]
[1733686204376,20.57432388,234.92,234.85,8.37163596]
[1733686204549,8.94595984,234.92,234.86,8.37163596]
[1733686205066,8.94595984,234.92,234.76,14.59500519]
[1733686205067,8.37163596,234.91,234.85,8.37163596]
[1733686206770,8.37163596,234.91,234.84,8.37163596]
[1733686206938,8.37163596,234.88,234.82,8.37163596]
[1733686209473,8.37163596,234.89,234.82,8.37163596]
[1733686211031,8.37163596,234.9,234.83,8.37163596]
[1733686211349,0.57432388,234.93,234.77,23.776884]
[1733686211350,8.37163596,234.91,234.84,8.37163596]
[1733686215879,0.57432388,234.94,234.85,8.37163596]
[1733686216078,0.57432388,234.95,234.9,8.37163596]
[1733686216396,6.484,234.96,234.91,8.37163596]
[1733686216765,14.85563596,234.96,234.9,8.37163596]
[1733686220898,6.484,234.96,234.91,8.37163596]
[1733686222097,6.484,234.96,234.9,8.37163596]
[1733686222299,14.85563596,234.96,234.9,8.37163596]
[1733686227174,6.484,234.96,234.9,8.37163596]
[1733686227910,1.5325,234.97,234.91,8.37163596]
[1733686228113,8.37163596,234.99,234.93,8.37163596]
[1733686228780,0.57432388,235.0,234.94,8.37163596]
[1733686228983,8.94595984,235.0,234.94,8.37163596]
[1733686230484,6.3072,235.01,234.96,8.37163596]
[1733686231094,16.80694126,235.03,234.98,8.37163596]
[1733686231584,1.5818,235.03,234.98,8.37163596]
[1733686232304,0.57432388,235.07,234.99,8.37163596]
[1733686232485,8.37163596,235.06,235.0,8.37163596]
[1733686232681,0.57432388,235.07,235.0,8.37163596]
[1733686232902,8.94595984,235.07,235.0,8.37163596]
[1733686233415,8.94595984,235.07,235.01,8.37163596]
[1733686233618,8.94595984,235.07,235.0,8.37163596]
[1733686234112,8.37163596,235.06,234.99,8.37163596]
[1733686234588,8.37163596,235.05,234.96,20.0]
[1733686234791,8.37163596,235.03,234.94,20.0]
[1733686235002,8.37163596,235.03,234.96,8.37163596]
[1733686235473,8.37163596,235.03,234.94,20.0]
[1733686235678,8.37163596,235.03,234.96,8.37163596]
[1733686235883,8.37163596,235.03,234.97,8.37163596]
[1733686236788,8.37163596,235.01,234.92,1.5903]
[1733686236992,8.37163596,235.01,234.95,8.37163596]
[1733686238676,8.37163596,234.99,234.93,8.37163596]
[1733686239903,8.37163596,235.0,234.94,8.37163596]
[1733686241880,8.37163596,235.01,234.95,8.37163596]
[1733686242917,8.37163596,235.03,234.96,8.37163596]
[1733686243077,8.94595984,235.03,234.96,8.37163596]
[1733686244309,8.94595984,235.04,234.97,8.37163596]
[1733686245730,2.1272,235.05,234.99,8.37163596]
[1733686246613,8.37163596,235.06,234.99,8.37163596]
[1733686246814,0.57432388,235.05,234.99,8.37163596]
[1733686247216,0.57432388,235.07,235.01,8.37163596]
[1733686247537,6.3072,235.08,235.01,8.37163596]
[1733686247538,15.25315984,235.08,235.01,8.37163596]
[1733686249238,8.37163596,235.07,235.01,8.37163596]
[1733686251625,8.37163596,235.05,234.99,8.37163596]
[1733686251840,8.37163596,235.04,234.98,8.37163596]
[1733686252203,8.37163596,235.05,234.99,8.37163596]
[1733686257249,0.57432388,235.07,234.99,8.37163596]
[1733686257406,8.37163596,235.05,234.99,8.37163596]
[1733686260467,8.37163596,235.05,234.95,23.776884]
[1733686260769,8.37163596,235.02,234.95,8.37163596]
[1733686261266,0.57432388,235.01,234.95,8.37163596]
[1733686262631,8.37163596,235.02,234.95,8.37163596]
[1733686262859,0.57432388,235.01,234.95,8.37163596]
[1733686263355,8.94595984,235.01,234.94,8.37163596]
[1733686263861,8.37163596,235.0,234.93,8.37163596]
[1733686264051,8.37163596,235.0,234.94,8.37163596]
[1733686265930,8.37163596,234.97,234.9,8.37163596]
[1733686266147,8.37163596,234.94,234.85,20.0]
[1733686266415,8.37163596,234.94,234.87,28.37163596]
[1733686266576,8.37163596,234.94,234.88,8.37163596]
[1733686267651,0.57432388,234.99,234.89,8.37163596]
[1733686267862,8.37163596,234.95,234.89,8.37163596]
[1733686268994,8.37163596,234.97,234.9,8.37163596]
[1733686269165,0.57432388,234.99,234.93,8.37163596]
[1733686269498,15.08915984,235.0,234.94,8.37163596]
[1733686270973,6.1432,235.0,234.94,8.37163596]
[1733686271488,7.7894,235.05,234.97,8.37163596]
[1733686271780,8.94595984,235.04,234.98,8.37163596]
[1733686271940,8.37163596,235.04,234.98,8.37163596]
[1733686272135,8.94595984,235.04,234.98,8.37163596]
[1733686272634,8.37163596,235.04,234.98,8.37163596]
[1733686273375,7.7894,235.05,235.01,8.37163596]
[1733686275373,1.6462,235.05,235.01,8.37163596]
[1733686277869,1.6462,235.05,235.0,8.37163596]
[1733686278368,1.6462,235.05,234.99,8.37163596]
[1733686280492,10.01783596,235.05,234.99,8.37163596]
[1733686282052,10.01783596,235.05,234.98,8.37163596]
[1733686282251,8.37163596,235.04,234.98,8.37163596]
[1733686282447,8.37163596,235.04,234.95,1.69406768]
[1733686282672,8.37163596,235.04,234.98,8.37163596]
[1733686283888,10.01783596,235.05,234.98,8.37163596]
[1733686286803,10.01783596,235.05,234.99,8.37163596]
[1733686286990,0.57432388,235.09,235.0,8.37163596]
[1733686287192,7.87163596,235.08,235.01,8.37163596]
[1733686288805,8.37163596,235.09,235.03,8.37163596]
[1733686290974,6.1432,235.1,234.98,0.63807146]
[1733686290975,6.1432,235.1,235.05,8.37163596]
[1733686291415,1.6459,235.11,235.05,8.37163596]
[1733686294736,6.2525,235.15,235.08,8.37163596]
[1733686294941,6.2525,235.15,235.11,8.37163596]
[1733686295142,0.57432388,235.24,235.14,8.37163596]
[1733686295306,0.57432388,235.25,235.18,8.37163596]
[1733686295636,7.8437,235.29,235.18,8.37163596]
[1733686295637,0.57432388,235.27,235.18,8.37163596]
[1733686295809,0.57432388,235.28,235.15,0.63773661]
[1733686296130,0.57432388,235.28,235.18,8.37163596]
[1733686296436,8.94595984,235.28,235.18,8.37163596]
[1733686296599,0.57432388,235.28,235.18,8.37163596]
[1733686296804,16.21533596,235.29,235.18,8.37163596]
[1733686297399,7.8437,235.29,235.18,8.37163596]
[1733686298334,7.8437,235.29,235.15,0.63773661]
[1733686298541,7.8437,235.29,235.18,8.37163596]
[1733686299709,8.41802388,235.29,235.18,8.37163596]
[1733686299907,7.8437,235.29,235.18,8.37163596]
[1733686300137,16.78965984,235.29,235.18,8.37163596]
[1733686300852,8.37163596,235.28,235.18,8.37163596]
[1733686301430,7.8437,235.29,235.16,20.0]
[1733686301431,8.37163596,235.26,235.16,20.0]
[1733686301740,8.37163596,235.26,235.18,8.37163596]
[1733686301949,8.94595984,235.27,235.18,8.37163596]
[1733686305730,8.94595984,235.27,235.18,17.31759596]
[1733686306352,8.37163596,235.27,235.18,17.31759596]
[1733686308342,7.8437,235.29,235.18,17.31759596]
[1733686308760,16.21533596,235.29,235.18,17.31759596]
[1733686308965,7.8437,235.29,235.18,17.31759596]
[1733686309171,7.8437,235.29,235.24,8.37163596]
[1733686309370,7.8437,235.29,235.25,8.37163596]
[1733686310290,7.8437,235.29,235.21,20.0]
[1733686310291,16.21533596,235.29,235.22,8.37163596]
[1733686310492,7.8437,235.29,235.24,8.37163596]
[1733686310864,7.7295,235.34,235.26,8.37163596]
[1733686311177,7.7295,235.34,235.29,8.37163596]
[1733686311498,7.7295,235.34,235.3,8.37163596]
[1733686311667,1.5289,235.34,235.31,8.37163596]
[1733686311990,16.10113596,235.39,235.33,8.37163596]
[1733686312194,0.57432388,235.38,235.33,8.37163596]
[1733686312395,0.57432388,235.38,235.32,8.37163596]
[1733686312899,16.10113596,235.39,235.32,8.37163596]
[1733686313060,16.10113596,235.39,235.34,8.37163596]
[1733686313061,7.7295,235.39,235.34,8.37163596]
[1733686313491,7.7295,235.39,235.33,8.37163596]
[1733686313792,7.7295,235.39,235.34,8.37163596]
[1733686313971,7.7295,235.39,235.35,8.37163596]
[1733686314296,8.85753026,235.43,235.37,8.37163596]
[1733686314478,0.4858943,235.43,235.38,8.37163596]
[1733686314676,0.4858943,235.43,235.39,8.37163596]
[1733686315164,0.4858943,235.43,235.42,8.37163596]
[1733686315998,0.4858943,235.43,235.37,20.0]
[1733686316414,8.85753026,235.43,235.37,28.37163596]
[1733686317895,8.35753026,235.43,235.37,28.37163596]
[1733686318405,8.35753026,235.43,235.37,20.0]
[1733686318798,8.37163596,235.44,235.37,8.37163596]
[1733686319135,8.37163596,235.45,235.38,8.37163596]
[1733686319292,23.776884,235.46,235.39,8.37163596]
[1733686319494,8.94595984,235.45,235.39,8.37163596]
[1733686319801,8.37163596,235.45,235.39,8.37163596]
[1733686320009,8.37163596,235.45,235.38,8.37163596]
[1733686320318,8.37163596,235.41,235.3,10.6246]
[1733686320494,8.37163596,235.4,235.34,8.37163596]
[1733686320692,8.37163596,235.41,235.35,8.37163596]
[1733686320893,8.37163596,235.42,235.35,8.37163596]
[1733686321334,8.37163596,235.43,235.36,8.37163596]
[1733686321815,0.57432388,235.45,235.3,0.63719317]
[1733686321816,0.57432388,235.45,235.42,8.37163596]
[1733686321992,0.57432388,235.45,235.37,8.0926]
[1733686321993,8.94595984,235.54,235.38,20.63710408]
[1733686322199,8.94595984,235.54,235.46,8.37163596]
[1733686322200,8.37163596,235.52,235.46,8.37163596]
[1733686322429,0.57432388,235.51,235.46,8.37163596]
[1733686322942,2.1224,235.58,235.38,20.63710408]
[1733686322943,8.37163596,235.54,235.48,8.37163596]
[1733686323295,12.9883909,235.54,235.48,12.9883909]
[1733686323695,12.9883909,235.55,235.48,12.9883909]
[1733686323915,0.57432388,235.54,235.48,12.9883909]
[1733686324513,12.9883909,235.53,235.47,12.9883909]
[1733686324722,12.9883909,235.53,235.46,12.9883909]
[1733686324921,0.57432388,235.59,235.47,12.9883909]
[1733686325138,12.9883909,235.54,235.47,12.9883909]
[1733686325460,0.57432388,235.53,235.47,12.9883909]
[1733686326047,0.57432388,235.59,235.47,12.9883909]
[1733686326225,23.776884,235.58,235.49,12.9883909]
[1733686326425,23.776884,235.58,235.42,20.0]
[1733686326426,12.9883909,235.54,235.47,12.9883909]
[1733686326638,13.56271478,235.53,235.46,12.9883909]
[1733686326840,12.9883909,235.52,235.46,12.9883909]
[1733686327433,23.776884,235.56,235.46,12.9883909]
[1733686327736,12.9883909,235.52,235.46,12.9883909]
[1733686327935,0.57432388,235.53,235.46,12.9883909]
[1733686328248,12.9883909,235.52,235.46,12.9883909]
[1733686328815,23.776884,235.56,235.46,12.9883909]
[1733686329027,12.9883909,235.53,235.47,12.9883909]
[1733686329257,12.9883909,235.49,235.42,12.9883909]
[1733686329917,12.9883909,235.49,235.43,12.9883909]
[1733686330656,12.9883909,235.5,235.44,12.9883909]
[1733686331248,13.56271478,235.49,235.43,12.9883909]
[1733686332269,13.56271478,235.49,235.42,12.9883909]
[1733686332567,13.56271478,235.49,235.38,20.0]
[1733686332568,12.9883909,235.47,235.38,20.0]
[1733686332741,12.9883909,235.46,235.39,12.9883909]
[1733686335880,12.9883909,235.47,235.4,12.9883909]
[1733686336093,12.9883909,235.48,235.41,12.9883909]
[1733686336248,0.57432388,235.47,235.42,12.9883909]
[1733686336677,0.57432388,235.47,235.41,12.9883909]
[1733686341170,13.56271478,235.47,235.41,12.9883909]
[1733686342866,13.56271478,235.47,235.4,12.9883909]
[1733686344699,12.9883909,235.48,235.42,12.9883909]
[1733686344999,0.57432388,235.47,235.42,12.9883909]
[1733686345181,8.31721444,235.48,235.42,8.31721444]
[1733686345376,8.89153832,235.48,235.42,8.31721444]
[1733686345586,8.89153832,235.48,235.39,13.562715]
[1733686345587,7.8421,235.5,235.44,8.31721444]
[1733686345896,1.5781,235.5,235.45,8.31721444]
[1733686348100,0.57432388,235.51,235.45,8.31721444]
[1733686348293,0.57432388,235.51,235.46,8.31721444]
[1733686348606,7.8903,235.55,235.46,8.31721444]
[1733686348607,0.57432388,235.54,235.46,8.31721444]
[1733686348784,8.31721444,235.52,235.46,8.31721444]
[1733686349702,0.57432388,235.54,235.46,8.31721444]
[1733686349879,8.31721444,235.53,235.47,8.31721444]
[1733686350415,0.57432388,235.54,235.39,14.19970825]
[1733686350416,0.57432388,235.54,235.48,8.31721444]
[1733686350579,8.89153832,235.54,235.48,8.31721444]
[1733686351082,0.57432388,235.54,235.49,8.31721444]
[1733686351277,0.57432388,235.54,235.48,8.31721444]
[1733686351491,0.57432388,235.54,235.41,0.63691966]
[1733686351492,16.20751444,235.55,235.49,8.31721444]
[1733686352107,0.57432388,235.54,235.49,8.31721444]
[1733686352280,16.20751444,235.55,235.49,8.31721444]
[1733686352701,8.89153832,235.54,235.48,8.31721444]
[1733686354197,8.31721444,235.51,235.43,20.0]
[1733686354409,8.31721444,235.51,235.45,8.31721444]
[1733686354813,32.66842232,235.5,235.42,20.0]
[1733686355124,32.66842232,235.5,235.45,8.31721444]
[1733686355332,23.776884,235.5,235.45,8.31721444]
[1733686355508,8.31721444,235.51,235.45,8.31721444]
[1733686355917,0.57432388,235.54,235.47,8.31721444]
[1733686356225,8.89153832,235.54,235.48,8.31721444]
[1733686356729,8.31721444,235.54,235.48,8.31721444]
[1733686356928,7.8903,235.55,235.5,8.31721444]
[1733686357137,7.8903,235.55,235.51,8.31721444]
[1733686357328,7.8903,235.55,235.5,8.31721444]
[1733686359239,8.31721444,235.57,235.51,8.31721444]
[1733686359542,32.66842232,235.59,235.52,8.31721444]
[1733686361841,8.89153832,235.59,235.52,8.31721444]
[1733686363019,8.31721444,235.59,235.53,8.31721444]
[1733686363752,8.89153832,235.59,235.52,8.31721444]
[1733686365229,8.31721444,235.58,235.51,8.31721444]
[1733686365450,8.31721444,235.58,235.52,8.31721444]
[1733686367545,8.31721444,235.59,235.52,8.31721444]
[1733686367722,8.31721444,235.58,235.52,8.31721444]
[1733686369356,8.31721444,235.59,235.52,8.31721444]